[Event "*** Titled Tuesday Blitz"]
[Site "Chess.com"]
[Date "2020.04.14"]
[Round "5"]
[White "Pittiplatsh"]
[Black "DACF2905"]
[Result "1-0"]
[WhiteElo "2349"]
[BlackElo "2163"]
[TimeControl "180+1"]
[EndTime "10:49:48 PDT"]
[Termination "Pittiplatsh won by checkmate"]

1. e4 {[%clk 0:03:00]} 1... c5 {[%clk 0:02:58.5]} 2. Nf3 {[%clk 0:02:59.4]} 2...
e6 {[%clk 0:02:58.2]} 3. d4 {[%clk 0:02:59.5]} 3... cxd4 {[%clk 0:02:58.3]} 4.
Nxd4 {[%clk 0:03:00.2]} 4... Nc6 {[%clk 0:02:58.3]} 5. Nc3 {[%clk 0:02:59.4]}
5... a6 {[%clk 0:02:57.2]} 6. Be3 {[%clk 0:02:57.9]} 6... Qc7 {[%clk 0:02:57.4]}
7. Qf3 {[%clk 0:02:57.1]} 7... Nf6 {[%clk 0:02:55.6]} 8. O-O-O {[%clk
0:02:55.4]} 8... Bb4 {[%clk 0:02:52.6]} 9. Nxc6 {[%clk 0:02:41.8]} 9... bxc6
{[%clk 0:02:50.5]} 10. Bg5 {[%clk 0:02:24.4]} 10... Be7 {[%clk 0:02:22.3]} 11.
Bd3 {[%clk 0:02:18.3]} 11... d5 {[%clk 0:02:21.4]} 12. Rhe1 {[%clk 0:02:09.7]}
12... d4 {[%clk 0:02:14.8]} 13. e5 {[%clk 0:02:00.1]} 13... dxc3 {[%clk
0:02:14.2]} 14. exf6 {[%clk 0:02:00.1]} 14... cxb2+ {[%clk 0:02:13.1]} 15. Kb1
{[%clk 0:01:59.7]} 15... gxf6 {[%clk 0:02:12.2]} 16. Bxf6 {[%clk 0:01:59.3]}
16... Rf8 {[%clk 0:00:48.5]} 17. Bxh7 {[%clk 0:01:48.2]} 17... Bd7 {[%clk
0:00:43.7]} 18. Be4 {[%clk 0:01:45]} 18... Bb4 {[%clk 0:00:20.5]} 19. c3 {[%clk
0:01:33.5]} 19... Be7 {[%clk 0:00:17.4]} 20. h4 {[%clk 0:01:25.2]} 20... Bxf6
{[%clk 0:00:14.7]} 21. Qxf6 {[%clk 0:01:24.6]} 21... Rb8 {[%clk 0:00:14.2]} 22.
h5 {[%clk 0:01:18.4]} 22... c5 {[%clk 0:00:14.6]} 23. h6 {[%clk 0:01:11.9]}
23... Ba4 {[%clk 0:00:14.7]} 24. Rd2 {[%clk 0:01:01.7]} 24... Qh2 {[%clk
0:00:13]} 25. Bc6+ {[%clk 0:00:51]} 25... Bxc6 {[%clk 0:00:11.8]} 26. Rxe6+
{[%clk 0:00:50.6]} 26... fxe6 {[%clk 0:00:11.9]} 27. Qxe6# {[%clk 0:00:50.6]}
1-0

[Event "*** Titled Tuesday Blitz"]
[Site "Chess.com"]
[Date "2020.04.14"]
[Round "5"]
[White "GodDMuhammad"]
[Black "Chess_Boxer123"]
[Result "0-1"]
[WhiteElo "2245"]
[BlackElo "2481"]
[TimeControl "180+1"]
[EndTime "10:49:49 PDT"]
[Termination "Chess_Boxer123 won by resignation"]

1. f4 {[%clk 0:03:00.9]} 1... d5 {[%clk 0:02:59.2]} 2. Nf3 {[%clk 0:02:55.8]}
2... Bf5 {[%clk 0:02:59.1]} 3. g3 {[%clk 0:02:55.7]} 3... Nf6 {[%clk 0:02:58.3]}
4. Bg2 {[%clk 0:02:56]} 4... e6 {[%clk 0:02:58.9]} 5. d3 {[%clk 0:02:56]} 5...
Bc5 {[%clk 0:02:57.6]} 6. c3 {[%clk 0:02:56.4]} 6... h6 {[%clk 0:02:57.4]} 7.
Qc2 {[%clk 0:02:56.4]} 7... Nbd7 {[%clk 0:02:57.2]} 8. Nbd2 {[%clk 0:02:56.5]}
8... Bh7 {[%clk 0:02:57.1]} 9. e4 {[%clk 0:02:55.9]} 9... O-O {[%clk 0:02:56.5]}
10. Nb3 {[%clk 0:02:44.4]} 10... Bb6 {[%clk 0:02:56.3]} 11. e5 {[%clk
0:02:43.4]} 11... Ng4 {[%clk 0:02:56]} 12. h3 {[%clk 0:02:42]} 12... Nf2 {[%clk
0:02:55.2]} 13. Rf1 {[%clk 0:02:40]} 13... Nxd3+ {[%clk 0:02:54.6]} 14. Kd2
{[%clk 0:02:30.8]} 14... Nxf4 {[%clk 0:02:54.7]} 15. Qxh7+ {[%clk 0:02:27]}
15... Kxh7 {[%clk 0:02:55.6]} 16. gxf4 {[%clk 0:02:27.9]} 16... a5 {[%clk
0:02:51.5]} 17. Nbd4 {[%clk 0:02:26]} 17... c5 {[%clk 0:02:51.5]} 18. Nb5 {[%clk
0:02:23.3]} 18... d4 {[%clk 0:02:51.8]} 19. cxd4 {[%clk 0:02:19.3]} 19... cxd4
{[%clk 0:02:52.7]} 20. Nd6 {[%clk 0:02:19.6]} 20... Bc5 {[%clk 0:02:49.7]} 21.
Ne4 {[%clk 0:02:17.6]} 21... Rc8 {[%clk 0:02:47.3]} 22. Ke2 {[%clk 0:02:14.1]}
22... Qb6 {[%clk 0:02:46.1]} 23. Rd1 {[%clk 0:02:11.5]} 23... Qb5+ {[%clk
0:02:43.5]} 24. Kf2 {[%clk 0:02:09.7]} 24... Rfd8 {[%clk 0:02:43.4]} 25. Kg3
{[%clk 0:02:08.7]} 25... Nb6 {[%clk 0:02:38.2]} 26. Bf1 {[%clk 0:02:08.7]} 26...
Qc6 {[%clk 0:02:38.2]} 27. Bd3 {[%clk 0:02:08]} 27... Nd5 {[%clk 0:02:37.2]} 28.
Nxc5+ {[%clk 0:02:06.1]} 28... g6 {[%clk 0:02:36.7]} 29. Ne4 {[%clk 0:02:05.1]}
29... Kg7 {[%clk 0:02:35.9]} 30. Bd2 {[%clk 0:02:05.2]} 30... Ne3 {[%clk
0:02:35.9]} 31. Re1 {[%clk 0:01:58.9]} 31... Nc2 {[%clk 0:02:26.2]} 32. Rac1
{[%clk 0:01:47.6]} 32... Nxe1 {[%clk 0:02:25.3]} 33. Rxc6 {[%clk 0:01:46.8]}
33... Nxd3 {[%clk 0:02:24.1]} 34. Rxc8 {[%clk 0:01:40.7]} 34... Rxc8 {[%clk
0:02:25]} 35. Nxd4 {[%clk 0:01:36]} 35... Nxb2 {[%clk 0:02:22.7]} 36. Bxa5
{[%clk 0:01:32]} 36... Rc4 {[%clk 0:02:21.9]} 37. Bb6 {[%clk 0:01:29]} 37... Na4
{[%clk 0:02:20]} 38. Ba7 {[%clk 0:01:16.6]} 38... b6 {[%clk 0:02:19.8]} 39.
Nxe6+ {[%clk 0:00:52.4]} 39... fxe6 {[%clk 0:02:18.4]} 40. Nd6 {[%clk
0:00:52.5]} 40... Rc3+ {[%clk 0:02:13.5]} 41. Kg2 {[%clk 0:00:46.8]} 41... Rc2+
{[%clk 0:02:12.3]} 42. Kg3 {[%clk 0:00:47.1]} 42... Rxa2 {[%clk 0:02:13.2]} 43.
Bb8 {[%clk 0:00:36.6]} 43... Nc3 {[%clk 0:02:10.2]} 44. Bc7 {[%clk 0:00:29.8]}
44... Nd5 {[%clk 0:02:04.4]} 45. Bd8 {[%clk 0:00:27.9]} 45... Ra3+ {[%clk
0:02:01.3]} 46. Kf2 {[%clk 0:00:24.3]} 46... Rxh3 {[%clk 0:01:55.6]} 47. Ne8+
{[%clk 0:00:18.6]} 47... Kf8 {[%clk 0:01:53.4]} 48. Nd6 {[%clk 0:00:19.2]} 48...
Nxf4 {[%clk 0:01:50.1]} 49. Bxb6 {[%clk 0:00:18]} 49... Rb3 {[%clk 0:01:48.2]}
50. Bc5 {[%clk 0:00:16.9]} 50... Nd3+ {[%clk 0:01:48]} 51. Kg2 {[%clk
0:00:15.4]} 51... Nxc5 {[%clk 0:01:48.9]} 0-1

[Event "*** Titled Tuesday Blitz"]
[Site "Chess.com"]
[Date "2020.04.14"]
[Round "5"]
[White "Muguet7"]
[Black "Vesper2018"]
[Result "0-1"]
[WhiteElo "2461"]
[BlackElo "1872"]
[TimeControl "180+1"]
[EndTime "10:49:52 PDT"]
[Termination "Vesper2018 won by resignation"]

1. d4 {[%clk 0:03:00.9]} 1... Nf6 {[%clk 0:02:59.3]} 2. c4 {[%clk 0:02:59.9]}
2... g6 {[%clk 0:02:59.4]} 3. Nf3 {[%clk 0:02:57.7]} 3... Bg7 {[%clk 0:02:59.5]}
4. Nc3 {[%clk 0:02:57.7]} 4... O-O {[%clk 0:02:59.6]} 5. e4 {[%clk 0:02:56.1]}
5... d6 {[%clk 0:02:59.9]} 6. h3 {[%clk 0:02:54.4]} 6... e5 {[%clk 0:02:56.7]}
7. d5 {[%clk 0:02:54]} 7... Nh5 {[%clk 0:02:53.7]} 8. Bg5 {[%clk 0:02:43.1]}
8... f6 {[%clk 0:02:50.4]} 9. Be3 {[%clk 0:02:42.3]} 9... Qe8 {[%clk 0:02:38.8]}
10. g4 {[%clk 0:02:22]} 10... Nf4 {[%clk 0:02:38.1]} 11. Qd2 {[%clk 0:02:21.2]}
11... f5 {[%clk 0:02:29.4]} 12. gxf5 {[%clk 0:02:18.6]} 12... gxf5 {[%clk
0:02:29.6]} 13. O-O-O {[%clk 0:02:02.7]} 13... Na6 {[%clk 0:02:17.4]} 14. Bxf4
{[%clk 0:01:49]} 14... exf4 {[%clk 0:02:16.9]} 15. exf5 {[%clk 0:01:33.2]} 15...
Bxf5 {[%clk 0:02:12.9]} 16. Bd3 {[%clk 0:01:33.2]} 16... Bxd3 {[%clk 0:02:07]}
17. Qxd3 {[%clk 0:01:33.2]} 17... Nc5 {[%clk 0:02:01.5]} 18. Qc2 {[%clk
0:01:32.9]} 18... Qh5 {[%clk 0:01:58.3]} 19. Nd4 {[%clk 0:01:26.2]} 19... Rae8
{[%clk 0:01:52.9]} 20. b4 {[%clk 0:01:24.5]} 20... Bxd4 {[%clk 0:01:36.4]} 21.
Rxd4 {[%clk 0:01:22.4]} 21... Nd7 {[%clk 0:01:36.4]} 22. Re4 {[%clk 0:01:05.6]}
22... Ne5 {[%clk 0:01:33.9]} 23. Rg1+ {[%clk 0:00:55.6]} 23... Kh8 {[%clk
0:01:33.8]} 24. Kb1 {[%clk 0:00:53]} 24... Qf5 {[%clk 0:01:29.4]} 25. h4 {[%clk
0:00:48.3]} 25... h6 {[%clk 0:01:24.8]} 26. Ne2 {[%clk 0:00:43.5]} 26... Nf3
{[%clk 0:00:55.5]} 27. Rxe8 {[%clk 0:00:33.4]} 27... Qxc2+ {[%clk 0:00:54]} 28.
Kxc2 {[%clk 0:00:32.9]} 28... Rxe8 {[%clk 0:00:54.4]} 29. Rg4 {[%clk 0:00:22]}
29... Rxe2+ {[%clk 0:00:54.2]} 30. Kd3 {[%clk 0:00:21.9]} 30... Rxf2 {[%clk
0:00:53.7]} 31. a3 {[%clk 0:00:19.6]} 31... Ne5+ {[%clk 0:00:53.4]} 0-1

[Event "*** Titled Tuesday Blitz"]
[Site "Chess.com"]
[Date "2020.04.14"]
[Round "5"]
[White "rasmussvane"]
[Black "Riazantsev"]
[Result "1-0"]
[WhiteElo "2876"]
[BlackElo "2637"]
[TimeControl "180+1"]
[EndTime "10:49:54 PDT"]
[Termination "rasmussvane won by resignation"]

1. Nf3 {[%clk 0:03:00.9]} 1... d5 {[%clk 0:03:00]} 2. g3 {[%clk 0:03:01.1]} 2...
Nd7 {[%clk 0:03:00.3]} 3. d4 {[%clk 0:03:00.6]} 3... Nb6 {[%clk 0:02:59.6]} 4.
Nbd2 {[%clk 0:02:57]} 4... Nf6 {[%clk 0:02:59.6]} 5. Bg2 {[%clk 0:02:56.2]} 5...
Bf5 {[%clk 0:02:59.4]} 6. Nh4 {[%clk 0:02:56.1]} 6... Bg4 {[%clk 0:02:58.5]} 7.
a4 {[%clk 0:02:44.7]} 7... a5 {[%clk 0:02:56.1]} 8. h3 {[%clk 0:02:37.1]} 8...
Bh5 {[%clk 0:02:56]} 9. g4 {[%clk 0:02:37.6]} 9... Bg6 {[%clk 0:02:55.5]} 10.
Nxg6 {[%clk 0:02:38.1]} 10... hxg6 {[%clk 0:02:55.3]} 11. e4 {[%clk 0:02:39]}
11... e6 {[%clk 0:02:53.2]} 12. c3 {[%clk 0:02:30.2]} 12... dxe4 {[%clk
0:02:46.4]} 13. Nxe4 {[%clk 0:02:31.1]} 13... Nxe4 {[%clk 0:02:46.6]} 14. Bxe4
{[%clk 0:02:31.5]} 14... c6 {[%clk 0:02:47]} 15. Bg2 {[%clk 0:02:23.5]} 15...
Bd6 {[%clk 0:02:46.6]} 16. O-O {[%clk 0:02:22.6]} 16... Nd5 {[%clk 0:02:44.2]}
17. f4 {[%clk 0:02:06.4]} 17... Qc7 {[%clk 0:02:40.7]} 18. Qf3 {[%clk
0:02:05.4]} 18... O-O-O {[%clk 0:02:37.8]} 19. Bd2 {[%clk 0:02:05.5]} 19... f5
{[%clk 0:02:36.7]} 20. Rae1 {[%clk 0:01:57.5]} 20... Rde8 {[%clk 0:02:31.7]} 21.
c4 {[%clk 0:01:31.6]} 21... Nf6 {[%clk 0:02:13.8]} 22. c5 {[%clk 0:01:32.1]}
22... Bf8 {[%clk 0:02:14]} 23. g5 {[%clk 0:01:25.4]} 23... Nd5 {[%clk 0:02:08]}
24. Re2 {[%clk 0:01:13.5]} 24... Kd7 {[%clk 0:02:05.7]} 25. Rfe1 {[%clk
0:01:01.9]} 25... Rh4 {[%clk 0:02:05.6]} 26. Qg3 {[%clk 0:00:44]} 26... Rxf4
{[%clk 0:01:57.2]} 27. Bxf4 {[%clk 0:00:42.3]} 27... Nxf4 {[%clk 0:01:39.7]} 28.
Re5 {[%clk 0:00:41.5]} 28... Nd5 {[%clk 0:01:25.2]} 29. Bxd5 {[%clk 0:00:41.4]}
29... cxd5 {[%clk 0:01:24.7]} 30. Rxd5+ {[%clk 0:00:41.7]} 30... Kc8 {[%clk
0:01:25]} 31. Qxc7+ {[%clk 0:00:40]} 31... Kxc7 {[%clk 0:01:25.2]} 32. Rde5
{[%clk 0:00:40.5]} 32... Rd8 {[%clk 0:01:24.8]} 33. Rd1 {[%clk 0:00:27.8]} 33...
Kd7 {[%clk 0:01:18.6]} 34. Kf2 {[%clk 0:00:27.9]} 34... Be7 {[%clk 0:01:18.3]}
35. h4 {[%clk 0:00:28.1]} 35... Rc8 {[%clk 0:01:18.7]} 36. Kf3 {[%clk
0:00:23.8]} 36... Bd8 {[%clk 0:01:18.4]} 37. d5 {[%clk 0:00:23.1]} 37... exd5
{[%clk 0:01:10.2]} 38. Rdxd5+ {[%clk 0:00:24]} 38... Kc7 {[%clk 0:01:10.2]} 39.
Re6 {[%clk 0:00:24.2]} 1-0

[Event "*** Titled Tuesday Blitz"]
[Site "Chess.com"]
[Date "2020.04.14"]
[Round "5"]
[White "pitopisback"]
[Black "mattcolins2025"]
[Result "0-1"]
[WhiteElo "2121"]
[BlackElo "2287"]
[TimeControl "180+1"]
[EndTime "10:49:54 PDT"]
[Termination "mattcolins2025 won on time"]

1. d4 {[%clk 0:02:45.5]} 1... Nf6 {[%clk 0:02:59.3]} 2. c4 {[%clk 0:02:45.3]}
2... g6 {[%clk 0:02:59.4]} 3. Nc3 {[%clk 0:02:45.2]} 3... Bg7 {[%clk 0:02:59.5]}
4. e4 {[%clk 0:02:45.7]} 4... d6 {[%clk 0:02:59.6]} 5. h3 {[%clk 0:02:45.7]}
5... O-O {[%clk 0:02:59.6]} 6. Bg5 {[%clk 0:02:46]} 6... c5 {[%clk 0:02:56.9]}
7. d5 {[%clk 0:02:45.8]} 7... h6 {[%clk 0:02:55.7]} 8. Be3 {[%clk 0:02:45.5]}
8... e6 {[%clk 0:02:55.4]} 9. Bd3 {[%clk 0:02:44.9]} 9... exd5 {[%clk
0:02:55.3]} 10. exd5 {[%clk 0:02:45.2]} 10... Nbd7 {[%clk 0:02:49.7]} 11. Nf3
{[%clk 0:02:41.9]} 11... Re8 {[%clk 0:02:45.8]} 12. Qd2 {[%clk 0:02:36]} 12...
Ne5 {[%clk 0:02:44.2]} 13. Nxe5 {[%clk 0:02:35.3]} 13... Rxe5 {[%clk 0:02:44]}
14. O-O-O {[%clk 0:02:32.9]} 14... Kh7 {[%clk 0:02:42.7]} 15. f4 {[%clk
0:02:24.6]} 15... Re8 {[%clk 0:02:40.7]} 16. g4 {[%clk 0:02:21.5]} 16... a6
{[%clk 0:02:38.1]} 17. f5 {[%clk 0:02:18]} 17... gxf5 {[%clk 0:02:25.3]} 18. g5
{[%clk 0:02:07.4]} 18... Ne4 {[%clk 0:02:07.2]} 19. Bxe4 {[%clk 0:01:51.6]}
19... fxe4 {[%clk 0:02:06.3]} 20. gxh6 {[%clk 0:01:51]} 20... Bf6 {[%clk
0:02:05.3]} 21. Rdf1 {[%clk 0:01:39.4]} 21... b5 {[%clk 0:01:59.5]} 22. Qf2
{[%clk 0:01:37]} 22... b4 {[%clk 0:01:31.5]} 23. Qxf6 {[%clk 0:00:57.1]} 23...
Qxf6 {[%clk 0:01:29.6]} 24. Rxf6 {[%clk 0:00:57.7]} 24... bxc3 {[%clk
0:01:30.1]} 25. Rg1 {[%clk 0:00:57.2]} 25... cxb2+ {[%clk 0:01:27.7]} 26. Kb1
{[%clk 0:00:54.5]} 26... Rg8 {[%clk 0:01:13.7]} 27. Rxf7+ {[%clk 0:00:51.6]}
27... Kh8 {[%clk 0:01:13.4]} 28. Bg5 {[%clk 0:00:41.3]} 28... Rg6 {[%clk
0:01:04]} 0-1

[Event "*** Titled Tuesday Blitz"]
[Site "Chess.com"]
[Date "2020.04.14"]
[Round "5"]
[White "Spring199"]
[Black "TV27"]
[Result "1-0"]
[WhiteElo "2313"]
[BlackElo "2066"]
[TimeControl "180+1"]
[EndTime "10:49:57 PDT"]
[Termination "Spring199 won by resignation"]

1. d4 {[%clk 0:03:00.9]} 1... d6 {[%clk 0:02:43.6]} 2. c4 {[%clk 0:03:00]} 2...
f5 {[%clk 0:02:42.5]} 3. Nf3 {[%clk 0:02:54.9]} 3... Nf6 {[%clk 0:02:41.8]} 4.
Bg5 {[%clk 0:02:45]} 4... e6 {[%clk 0:02:40]} 5. Nc3 {[%clk 0:02:44.1]} 5...
Nbd7 {[%clk 0:02:39.1]} 6. e3 {[%clk 0:02:40.2]} 6... h6 {[%clk 0:02:37.9]} 7.
Bh4 {[%clk 0:02:35.9]} 7... g5 {[%clk 0:02:37.1]} 8. Bg3 {[%clk 0:02:35.5]} 8...
Bg7 {[%clk 0:02:35.8]} 9. Bd3 {[%clk 0:02:31.6]} 9... Qe7 {[%clk 0:02:31.8]} 10.
d5 {[%clk 0:02:11.2]} 10... Nc5 {[%clk 0:02:30.5]} 11. dxe6 {[%clk 0:02:04.6]}
11... Bxe6 {[%clk 0:02:27.2]} 12. O-O {[%clk 0:01:57.5]} 12... h5 {[%clk
0:02:21.9]} 13. Nxg5 {[%clk 0:01:50.4]} 13... h4 {[%clk 0:02:15.4]} 14. Bf4
{[%clk 0:01:45.2]} 14... h3 {[%clk 0:02:12.9]} 15. Nxh3 {[%clk 0:01:39.1]} 15...
Rxh3 {[%clk 0:02:05.7]} 16. gxh3 {[%clk 0:01:38.3]} 16... O-O-O {[%clk 0:02:05]}
17. Be2 {[%clk 0:01:31.3]} 17... Rh8 {[%clk 0:01:59]} 18. Bf3 {[%clk 0:01:14.5]}
18... Bxc4 {[%clk 0:01:57.2]} 19. Re1 {[%clk 0:01:10.5]} 19... Nd3 {[%clk
0:01:55.6]} 20. Qa4 {[%clk 0:00:58.1]} 20... Nxe1 {[%clk 0:01:48.9]} 21. Rxe1
{[%clk 0:00:55.3]} 21... Ba6 {[%clk 0:01:44.9]} 22. b4 {[%clk 0:00:47.2]} 22...
Nd7 {[%clk 0:01:35.4]} 23. Nd5 {[%clk 0:00:44.8]} 23... Qf7 {[%clk 0:01:27.7]}
24. b5 {[%clk 0:00:41.7]} 24... Rg8 {[%clk 0:01:15.1]} 25. Kh1 {[%clk
0:00:37.5]} 25... Nc5 {[%clk 0:01:10.7]} 26. Qc4 {[%clk 0:00:35.7]} 26... Qg6
{[%clk 0:00:45.6]} 27. bxa6 {[%clk 0:00:32.3]} 27... Nxa6 {[%clk 0:00:37.8]} 28.
Ne7+ {[%clk 0:00:31.8]} 28... Kb8 {[%clk 0:00:36.6]} 29. Nxg6 {[%clk 0:00:32]}
1-0

[Event "*** Titled Tuesday Blitz"]
[Site "Chess.com"]
[Date "2020.04.14"]
[Round "5"]
[White "Sanyura"]
[Black "Aemulus20"]
[Result "1-0"]
[WhiteElo "2410"]
[BlackElo "2567"]
[TimeControl "180+1"]
[EndTime "10:49:58 PDT"]
[Termination "Sanyura won by resignation"]

1. e4 {[%clk 0:03:00.9]} 1... c5 {[%clk 0:02:59.4]} 2. Nf3 {[%clk 0:03:00.4]}
2... d6 {[%clk 0:02:59.5]} 3. d4 {[%clk 0:03:00.4]} 3... cxd4 {[%clk 0:03:00.4]}
4. Nxd4 {[%clk 0:03:00.9]} 4... Nf6 {[%clk 0:03:01]} 5. Nc3 {[%clk 0:03:01.2]}
5... a6 {[%clk 0:03:01.4]} 6. h3 {[%clk 0:03:00.9]} 6... e5 {[%clk 0:03:01.3]}
7. Nde2 {[%clk 0:03:00.8]} 7... h5 {[%clk 0:03:00.8]} 8. Bg5 {[%clk 0:03:00]}
8... Be6 {[%clk 0:02:59.2]} 9. g3 {[%clk 0:02:59.7]} 9... Nbd7 {[%clk
0:02:56.5]} 10. Bg2 {[%clk 0:02:59.1]} 10... Be7 {[%clk 0:02:48.6]} 11. a4
{[%clk 0:02:56.3]} 11... Rc8 {[%clk 0:02:43.9]} 12. O-O {[%clk 0:02:51.4]} 12...
g6 {[%clk 0:02:29.5]} 13. Be3 {[%clk 0:02:31.6]} 13... Nc5 {[%clk 0:02:17.7]}
14. f4 {[%clk 0:02:26.5]} 14... O-O {[%clk 0:01:58.6]} 15. f5 {[%clk 0:02:23.7]}
15... Bc4 {[%clk 0:01:56.9]} 16. Bh6 {[%clk 0:02:17.5]} 16... Qb6 {[%clk
0:01:42.7]} 17. Kh2 {[%clk 0:02:14.9]} 17... Rfd8 {[%clk 0:01:28.6]} 18. b3
{[%clk 0:01:56.3]} 18... Bxe2 {[%clk 0:01:23.9]} 19. Qxe2 {[%clk 0:01:57.2]}
19... Nxb3 {[%clk 0:01:17.8]} 20. fxg6 {[%clk 0:01:27.1]} 20... fxg6 {[%clk
0:00:30.1]} 21. Rxf6 {[%clk 0:01:21]} 21... Bxf6 {[%clk 0:00:22.1]} 22. Nd5
{[%clk 0:01:21]} 22... Qd4 {[%clk 0:00:13.2]} 23. Nxf6+ {[%clk 0:01:20.3]} 23...
Kf7 {[%clk 0:00:12.7]} 24. Rf1 {[%clk 0:01:19]} 24... Nc5 {[%clk 0:00:11.1]} 25.
c3 {[%clk 0:01:09.9]} 25... Qd3 {[%clk 0:00:09.7]} 26. Nd5+ {[%clk 0:01:09.9]}
26... Ke6 {[%clk 0:00:08.8]} 27. Rf6+ {[%clk 0:01:00.5]} 27... Kd7 {[%clk
0:00:08.7]} 28. Rf7+ {[%clk 0:01:00.8]} 28... Kc6 {[%clk 0:00:01.9]} 29. Nb4+
{[%clk 0:01:00.9]} 29... Kb6 {[%clk 0:00:02.4]} 30. Nxd3 {[%clk 0:01:01.8]} 1-0

[Event "*** Titled Tuesday Blitz"]
[Site "Chess.com"]
[Date "2020.04.14"]
[Round "5"]
[White "WhiteKnight2612"]
[Black "CroissantNeuf"]
[Result "1-0"]
[WhiteElo "2691"]
[BlackElo "2397"]
[TimeControl "180+1"]
[EndTime "10:49:58 PDT"]
[Termination "WhiteKnight2612 won on time"]

1. g3 {[%clk 0:03:00.9]} 1... d5 {[%clk 0:02:58.5]} 2. Bg2 {[%clk 0:03:01.8]}
2... g6 {[%clk 0:02:57.6]} 3. Nf3 {[%clk 0:03:02.7]} 3... Nf6 {[%clk 0:02:56]}
4. O-O {[%clk 0:03:03]} 4... Bg7 {[%clk 0:02:55.8]} 5. c4 {[%clk 0:03:03.9]}
5... dxc4 {[%clk 0:02:55.4]} 6. Na3 {[%clk 0:03:02.6]} 6... Be6 {[%clk
0:02:46.7]} 7. Ng5 {[%clk 0:02:59.4]} 7... Bd5 {[%clk 0:02:46.3]} 8. e4 {[%clk
0:02:59.7]} 8... Bc6 {[%clk 0:02:43.6]} 9. e5 {[%clk 0:02:55.8]} 9... Bxg2
{[%clk 0:02:27.3]} 10. Kxg2 {[%clk 0:02:36.8]} 10... Qd5+ {[%clk 0:02:09.6]} 11.
Qf3 {[%clk 0:02:35.5]} 11... Qxf3+ {[%clk 0:02:08.9]} 12. Kxf3 {[%clk
0:02:36.4]} 12... Nfd7 {[%clk 0:02:03.8]} 13. e6 {[%clk 0:02:36.5]} 13... Ne5+
{[%clk 0:01:56.5]} 14. Kg2 {[%clk 0:02:36.6]} 14... f5 {[%clk 0:01:19.5]} 15. f4
{[%clk 0:02:33.3]} 15... Nd3 {[%clk 0:01:19.4]} 16. Nxc4 {[%clk 0:02:32.3]}
16... Nc6 {[%clk 0:01:11.4]} 17. Nf7 {[%clk 0:02:30.1]} 17... O-O {[%clk
0:01:07.6]} 18. Rb1 {[%clk 0:02:15.5]} 18... Nd4 {[%clk 0:01:04.7]} 19. Ng5
{[%clk 0:02:12.3]} 19... h6 {[%clk 0:00:35.5]} 20. Nf3 {[%clk 0:02:11.6]} 20...
Nxe6 {[%clk 0:00:34.4]} 21. b4 {[%clk 0:02:10]} 21... Rad8 {[%clk 0:00:23.7]}
22. b5 {[%clk 0:02:08]} 22... Nec5 {[%clk 0:00:19.2]} 23. Ba3 {[%clk 0:02:07]}
23... Rd5 {[%clk 0:00:16.7]} 24. Ne3 {[%clk 0:02:06.1]} 24... Rd6 {[%clk
0:00:13.6]} 25. Rfc1 {[%clk 0:02:01]} 25... Nxc1 {[%clk 0:00:13.2]} 26. Bxc5
{[%clk 0:02:01.3]} 26... Nd3 {[%clk 0:00:10.9]} 27. Bxd6 {[%clk 0:02:00.2]}
27... exd6 {[%clk 0:00:10.6]} 28. Nd5 {[%clk 0:01:59.8]} 28... Rf7 {[%clk
0:00:08.8]} 29. Rb3 {[%clk 0:01:56.8]} 29... Nc5 {[%clk 0:00:08.8]} 30. Ra3
{[%clk 0:01:57.1]} 30... c6 {[%clk 0:00:09.2]} 31. Nb4 {[%clk 0:01:53.1]} 31...
Rc7 {[%clk 0:00:07]} 32. d4 {[%clk 0:01:52.4]} 32... Ne4 {[%clk 0:00:06.1]} 33.
Rxa7 {[%clk 0:01:51.2]} 33... cxb5 {[%clk 0:00:05.3]} 34. Ra8+ {[%clk
0:01:43.4]} 34... Kh7 {[%clk 0:00:04.8]} 35. Rb8 {[%clk 0:01:39.8]} 35... Rc4
{[%clk 0:00:04]} 36. a3 {[%clk 0:01:38.6]} 36... Rc3 {[%clk 0:00:02]} 37. Rxb7
{[%clk 0:01:36]} 37... Rxa3 {[%clk 0:00:02.6]} 38. Ne1 {[%clk 0:01:29.3]} 38...
Rb3 {[%clk 0:00:01.7]} 39. Nec2 {[%clk 0:01:27.6]} 1-0

[Event "*** Titled Tuesday Blitz"]
[Site "Chess.com"]
[Date "2020.04.14"]
[Round "5"]
[White "xberli"]
[Black "Keaton87"]
[Result "0-1"]
[WhiteElo "2440"]
[BlackElo "2664"]
[TimeControl "180+1"]
[EndTime "10:50:02 PDT"]
[Termination "Keaton87 won by resignation"]

1. e4 {[%clk 0:03:00.9]} 1... c5 {[%clk 0:03:00.4]} 2. Nf3 {[%clk 0:02:59.7]}
2... e6 {[%clk 0:03:00.4]} 3. d4 {[%clk 0:03:00]} 3... cxd4 {[%clk 0:03:00.6]}
4. Nxd4 {[%clk 0:03:00.9]} 4... Nc6 {[%clk 0:03:00.7]} 5. Nc3 {[%clk 0:03:00.9]}
5... a6 {[%clk 0:03:01.1]} 6. Be3 {[%clk 0:03:01.4]} 6... Nf6 {[%clk 0:03:00.3]}
7. Nxc6 {[%clk 0:03:00.4]} 7... bxc6 {[%clk 0:02:59.9]} 8. e5 {[%clk 0:03:00.3]}
8... Nd5 {[%clk 0:02:58.2]} 9. Nxd5 {[%clk 0:03:00.5]} 9... cxd5 {[%clk
0:02:57.2]} 10. Bd3 {[%clk 0:03:00.7]} 10... d6 {[%clk 0:02:56.3]} 11. exd6
{[%clk 0:02:56.8]} 11... Bxd6 {[%clk 0:02:55.9]} 12. O-O {[%clk 0:02:56.8]}
12... O-O {[%clk 0:02:55.7]} 13. Rc1 {[%clk 0:02:56.2]} 13... e5 {[%clk
0:02:53.3]} 14. c4 {[%clk 0:02:52.6]} 14... d4 {[%clk 0:02:51.2]} 15. Bd2 {[%clk
0:02:52.2]} 15... Be6 {[%clk 0:02:41.1]} 16. c5 {[%clk 0:02:48.2]} 16... Bc7
{[%clk 0:02:41.2]} 17. b4 {[%clk 0:02:42.2]} 17... Bxa2 {[%clk 0:02:36.8]} 18.
Ra1 {[%clk 0:02:37.3]} 18... Bd5 {[%clk 0:02:33.2]} 19. Bxa6 {[%clk 0:02:30.6]}
19... e4 {[%clk 0:02:29.3]} 20. Qh5 {[%clk 0:02:19]} 20... f5 {[%clk 0:02:20.4]}
21. Bg5 {[%clk 0:02:10.4]} 21... Qd7 {[%clk 0:02:13.4]} 22. Rfd1 {[%clk
0:02:07]} 22... d3 {[%clk 0:02:08.9]} 23. b5 {[%clk 0:01:53.4]} 23... f4 {[%clk
0:01:50]} 24. b6 {[%clk 0:01:31.9]} 24... Be5 {[%clk 0:01:49.9]} 25. Ra5 {[%clk
0:01:14.7]} 25... Bb3 {[%clk 0:01:16.2]} 26. Bb5 {[%clk 0:00:57]} 26... Bxd1
{[%clk 0:01:05.7]} 27. Qxd1 {[%clk 0:00:57.9]} 27... Qd5 {[%clk 0:00:58.4]} 28.
Ra4 {[%clk 0:00:35.9]} 28... Qxc5 {[%clk 0:00:46.3]} 29. Bc4+ {[%clk 0:00:32.7]}
29... Kh8 {[%clk 0:00:45.8]} 30. b7 {[%clk 0:00:31.9]} 30... Rxa4 {[%clk
0:00:41.6]} 31. Qxa4 {[%clk 0:00:30.8]} 31... d2 {[%clk 0:00:39.1]} 32. h4
{[%clk 0:00:25.1]} 32... h6 {[%clk 0:00:39.3]} 0-1